bitfinex-derivatives/quotes_SOLF0:USTF0_20260121
["timestamp","ask_amount","ask_price","bid_price","bid_amount"]
[1769012734811,108.996,128.56,128.44,3.40999981]
[1769012735614,294.2,128.56,128.44,3.40999981]
[1769012736308,403.1947,128.56,128.45,3.40999981]
[1769012736508,109.0001,128.55,128.45,3.40999981]
[1769012737315,109.0176,128.53,128.42,10.42369981]
[1769012738613,109.0176,128.53,128.36,132.5348]
[1769012738614,109.042,128.5,128.39,3.40999981]
[1769012739112,7.011,128.48,128.4,3.40999981]
[1769012739915,7.0116,128.47,128.4,3.40999981]
[1769012740615,115.36260388,128.51,128.41,3.40999981]
[1769012740816,409.64260388,128.51,128.41,3.40999981]
[1769012741913,7.011,128.48,128.41,3.40999981]
[1769012742718,7.0105,128.49,128.41,10.42459981]
[1769012743917,409.70260388,128.51,128.38,109.1404]
[1769012743918,13.33800388,128.51,128.42,10.42409981]
[1769012744117,6.32830388,128.51,128.42,10.42409981]
[1769012744527,109.0435,128.5,128.4,7.0148]
[1769012744823,109.0435,128.5,128.4,10.42479981]
[1769012745325,7.0108,128.49,128.41,10.42469981]
[1769012746320,7.0108,128.49,128.42,7.0141]
[1769012746719,6.32830388,128.51,128.43,3.40419322]
[1769012747020,6.32830388,128.54,128.44,3.40419322]
[1769012747220,115.34170388,128.54,128.44,3.40419322]
[1769012747421,6.32830388,128.54,128.45,3.40419322]
[1769012748120,403.378,128.56,128.41,109.1134]
[1769012748121,108.998,128.56,128.46,3.40419322]
[1769012748521,7.0076,128.54,128.46,10.41599322]
[1769012748720,108.998,128.56,128.46,10.41599322]
[1769012749019,409.69760388,128.57,128.43,3.40419322]
[1769012749020,109.0191,128.53,128.43,3.40419322]
[1769012749314,7.0098,128.5,128.43,3.40419322]
[1769012749716,7.0098,128.5,128.43,10.41779322]
[1769012752325,7.0105,128.49,128.43,3.40419322]
[1769012752625,7.0098,128.5,128.43,10.41779322]
[1769012753426,115.34701979,128.56,128.45,3.40419322]
[1769012754024,115.34701979,128.56,128.46,10.41559322]
[1769012754025,7.0076,128.55,128.46,10.41559322]
[1769012754423,115.32571979,128.59,128.47,3.40419322]
[1769012754621,3.53244506,128.52,128.47,3.40419322]
[1769012754821,3.16584134,128.52,128.41,3.40419322]
[1769012755223,7.0097,128.51,128.42,3.40419322]
[1769012755726,3.16584134,128.52,128.42,3.40419322]
[1769012755926,7.01,128.5,128.42,10.41819322]
[1769012759335,7.01,128.5,128.43,10.34597082]
[1769012759532,10.17494134,128.52,128.43,3.33247082]
[1769012759727,3.16584134,128.52,128.43,3.33247082]
[1769012760437,3.16877805,128.51,128.43,10.34597082]
[1769012760933,6.35561979,128.53,128.44,3.33247082]
[1769012761135,7.0092,128.52,128.45,3.33247082]
[1769012761532,3.16877805,128.52,128.45,3.33247082]
[1769012761835,3.16877805,128.52,128.47,0.05214261]
[1769012762434,3.16877805,128.52,128.42,10.34627082]
[1769012762435,3.16657578,128.51,128.42,3.33247082]
[1769012763033,3.11663544,128.51,128.42,3.33247082]
[1769012763236,10.12613544,128.51,128.42,10.34657082]
[1769012763435,10.12613544,128.51,128.42,3.33247082]
[1769012763436,3.11663544,128.51,128.42,3.33247082]
[1769012763740,0.05480125,128.48,128.42,3.33247082]
[1769012764832,0.05480125,128.48,128.42,10.34657082]
[1769012765029,0.05480125,128.48,128.42,3.33247082]
[1769012765225,10.18243669,128.48,128.39,3.33247082]
[1769012765425,3.17143669,128.48,128.37,109.1441]
[1769012765631,3.11663544,128.46,128.36,3.33247082]
[1769012766233,0.05332078,128.42,128.36,3.33247082]
[1769012766629,0.05332078,128.42,128.33,407.56376728]
[1769012766630,0.05332078,128.42,128.33,301.7129381]
[1769012767037,3.16995622,128.42,128.33,301.7129381]
[1769012767234,3.11663544,128.42,128.33,301.7129381]
[1769012767438,3.11663544,128.42,128.34,3.33247082]
[1769012767741,109.0811,128.46,128.34,112.50697082]
[1769012767742,7.0129,128.45,128.34,112.50697082]
[1769012768041,3.11663544,128.46,128.35,3.33247082]
[1769012768244,6.35561979,128.47,128.37,7.0168]
[1769012768245,10.12923544,128.45,128.37,7.0168]
[1769012770336,10.12923544,128.45,128.35,10.35007082]
[1769012770536,115.41751979,128.48,128.38,3.33247082]
[1769012770537,9.47225523,128.48,128.38,3.33247082]
[1769012770737,3.11663544,128.48,128.39,3.33247082]
[1769012771238,3.11663544,128.47,128.36,3.33247082]
[1769012771540,3.11663544,128.47,128.36,10.34977082]
[1769012771740,3.11663544,128.47,128.36,3.33247082]
[1769012771741,3.11663544,128.46,128.36,3.33247082]
[1769012771938,7.0119,128.47,128.38,3.33247082]
[1769012772136,3.11663544,128.49,128.38,3.33247082]
[1769012772335,7.011,128.48,128.38,3.33247082]
[1769012772732,3.11663544,128.49,128.39,10.34807082]
[1769012773133,7.0115,128.47,128.39,3.33247082]
[1769012773335,112.17003544,128.49,128.39,3.33247082]
[1769012773633,3.11663544,128.48,128.39,3.33247082]
[1769012773834,7.0122,128.46,128.39,3.33247082]
[1769012775044,10.12793544,128.48,128.39,3.33247082]
[1769012775245,7.0113,128.48,128.39,3.33247082]
[1769012777046,7.0113,128.48,128.4,10.36896691]
[1769012777543,7.0113,128.48,128.41,3.35406691]
[1769012777746,7.06000255,128.53,128.43,3.35406691]
[1769012777939,125.54842603,128.54,128.43,3.35406691]
[1769012778140,3.11880369,128.53,128.43,3.35406691]
[1769012778945,3.11880369,128.53,128.44,7.0128]
[1769012779246,3.11880369,128.53,128.44,10.36686691]
[1769012779446,7.0088,128.52,128.44,10.36686691]
[1769012780043,10.12760369,128.52,128.44,10.36686691]
[1769012781441,7.008,128.54,128.46,3.35406691]
[1769012781641,3.11880369,128.55,128.46,3.35406691]
[1769012781951,10.17880624,128.57,128.46,3.35406691]
[1769012782339,3.11880369,128.57,128.46,3.35406691]
[1769012782540,3.11880369,128.57,128.48,3.35406691]
[1769012783152,3.11880369,128.57,128.51,7.009]
[1769012783360,3.11880369,128.59,128.51,7.009]
[1769012783556,3.11880369,128.59,128.5,3.35406691]
[1769012783948,3.11880369,128.59,128.51,7.0091]
[1769012784146,3.11880369,128.59,128.48,109.052]
[1769012784445,3.11880369,128.59,128.48,3.35406691]
[1769012785254,7.0056,128.58,128.5,7.0097]
[1769012785650,7.0056,128.58,128.49,3.35406691]
[1769012785851,7.006,128.57,128.49,3.35406691]
[1769012786343,3.11880369,128.59,128.49,10.36426691]
[1769012786558,10.12430369,128.58,128.5,3.35406691]
[1769012787760,10.12430369,128.58,128.47,109.0632]
[1769012787761,7.0046,128.6,128.52,3.35406691]
[1769012787956,10.12340369,128.6,128.52,3.35406691]
[1769012788352,10.12340369,128.6,128.52,10.36276691]
[1769012788553,3.11880369,128.6,128.52,3.35406691]
[1769012788952,3.11880369,128.63,128.55,3.35406691]
[1769012789553,3.11880369,128.63,128.55,10.36096691]
[1769012789962,3.11880369,128.63,128.52,3.35406691]
[1769012790360,7.0033,128.62,128.54,3.35406691]
[1769012790752,3.11880369,128.63,128.54,3.35406691]
[1769012791256,3.11880369,128.63,128.54,10.36156691]
[1769012792462,108.909,128.66,128.56,3.35406691]
[1769012792661,3.11880369,128.65,128.56,3.35406691]
[1769012793164,7.0022,128.64,128.56,3.35406691]
[1769012793369,7.0022,128.64,128.53,109.0148]
[1769012793370,3.11880369,128.63,128.53,3.35406691]
[1769012793869,7.004,128.61,128.55,3.35406691]
[1769012795261,10.12180369,128.63,128.55,3.35406691]
[1769012795465,3.11880369,128.63,128.55,3.35406691]
[1769012797467,10.12170369,128.63,128.55,10.36106691]
[1769012798077,3.11880369,128.63,128.56,7.0065]
[1769012798373,3.11880369,128.66,128.55,3.35406691]
[1769012798768,3.11880369,128.65,128.56,10.36006691]
[1769012799375,3.11880369,128.62,128.54,7.0071]
[1769012799563,3.11880369,128.62,128.53,3.35406691]
[1769012799970,3.11880369,128.62,128.55,7.007]
[1769012801576,9.47442348,128.65,128.56,3.35406691]
[1769012801872,3.11880369,128.68,128.6,3.35406691]
[1769012802181,10.11910369,128.68,128.6,10.35826691]
[1769012803265,10.11910369,128.68,128.6,3.35406691]
[1769012803967,3.11880369,128.67,128.58,3.35406691]
[1769012804173,3.11880369,128.67,128.59,3.35406691]
[1769012804570,3.11880369,128.66,128.56,3.35406691]
[1769012805974,10.11990369,128.66,128.57,7.0059]
[1769012806374,6.35561979,128.68,128.57,3.13791226]
[1769012806575,9.47366864,128.68,128.57,3.13791226]
[1769012806772,3.11804885,128.68,128.59,3.13791226]
[1769012807172,3.11804885,128.7,128.59,3.13791226]
[1769012807372,6.9995,128.69,128.59,3.13791226]
[1769012807677,3.11804885,128.7,128.6,3.13791226]
[1769012808186,3.11804885,128.7,128.59,108.9617]
[1769012808187,3.11804885,128.7,128.61,3.13791226]
[1769012808982,6.9997,128.69,128.61,10.14121226]
[1769012809280,3.11804885,128.69,128.61,3.13791226]
[1769012809682,7.0006,128.67,128.61,3.13791226]
[1769012809872,3.11804885,128.69,128.61,3.13791226]
[1769012810078,3.11804885,128.73,128.63,3.13791226]
[1769012810281,3.11804885,128.73,128.65,10.13951226]
[1769012810875,294.14,128.75,128.66,10.13891226]
[1769012810876,6.9966,128.75,128.66,10.13891226]
[1769012811082,301.1366,128.75,128.66,10.13891226]
[1769012811279,294.14,128.75,128.66,10.13891226]
[1769012811581,3.11804885,128.73,128.63,3.13791226]
[1769012811983,6.998,128.72,128.64,10.13991226]
[1769012812180,301.098,128.72,128.64,10.13991226]
[1769012812584,304.21604885,128.72,128.64,3.13791226]
[1769012812885,10.11674885,128.71,128.62,7.0029]
[1769012813085,3.11804885,128.7,128.62,7.0029]
[1769012813691,297.19804885,128.69,128.62,7.0029]
[1769012814090,297.19804885,128.69,128.61,3.13791226]
[1769012814778,304.19764885,128.69,128.61,3.13791226]
[1769012814978,304.19764885,128.69,128.61,10.14161226]
[1769012815188,10.11764885,128.69,128.61,10.14161226]
[1769012815378,294.06,128.68,128.61,10.14161226]
[1769012815584,3.11804885,128.69,128.62,7.0031]
[1769012815992,3.11804885,128.69,128.61,3.13791226]
[1769012816291,294.06,128.7,128.64,7.0019]
[1769012816676,3.11804885,128.7,128.6,3.13791226]
[1769012816881,297.17804885,128.69,128.6,3.13791226]
[1769012817891,304.17774885,128.69,128.61,7.0037]
[1769012818091,297.17804885,128.69,128.61,10.14161226]
[1769012818288,9.44890615,128.75,128.65,3.13791226]
[1769012818484,3.11804885,128.75,128.66,3.17164786]
[1769012820097,294.06,128.76,128.66,3.17164786]
[1769012820098,10.11313895,128.74,128.66,10.17264786]
[1769012820890,294.04,128.73,128.66,10.17264786]
[1769012821291,301.0373,128.73,128.66,10.17264786]
[1769012821783,3.11633895,128.77,128.68,3.17164786]
[1769012821986,10.11203895,128.76,128.68,3.17164786]
[1769012822200,3.11633895,128.79,128.7,3.17164786]
[1769012822684,3.11633895,128.82,128.73,3.17164786]
[1769012823278,297.11633895,128.82,128.73,3.17164786]
[1769012823590,3.11633895,128.82,128.73,3.17164786]
[1769012823786,3.11633895,128.85,128.76,3.17164786]
[1769012824189,293.98,128.84,128.76,3.17164786]
[1769012825085,3.11633895,128.85,128.76,3.17164786]
[1769012825283,3.11633895,128.84,128.76,10.16634786]
[1769012825489,297.05633895,128.84,128.76,3.17164786]
[1769012825691,3.11633895,128.84,128.76,3.17164786]
[1769012825889,293.94,128.83,128.76,3.17164786]
[1769012826085,3.11633895,128.84,128.76,3.17164786]
[1769012826285,293.94,128.83,128.76,3.17164786]
[1769012827083,3.11633895,128.84,128.76,3.17164786]
[1769012827282,293.9,128.83,128.76,3.17164786]
[1769012827487,3.11633895,128.84,128.76,10.16624786]
[1769012827683,3.11633895,128.88,128.79,3.17164786]
[1769012827890,400.6736,128.93,128.82,3.17164786]
[1769012827891,3.11633895,128.91,128.82,3.17164786]
[1769012828195,297.01633895,128.9,128.8,10.16404786]
[1769012828498,3.11633895,128.89,128.8,3.17164786]
[1769012829581,296.97633895,128.89,128.8,3.17164786]
[1769012829785,296.97633895,128.89,128.78,108.7909]
[1769012829786,3.11633895,128.93,128.83,3.17164786]
[1769012829986,108.6393,128.97,128.86,3.17164786]
[1769012829987,3.11633895,128.96,128.86,3.17164786]
[1769012830199,3.11633895,128.96,128.86,111.89634786]
[1769012830382,296.95633895,128.96,128.87,6.9885]
[1769012830588,3.11633895,128.95,128.83,3.17164786]
[1769012830788,114.9676573,128.97,128.83,3.17164786]
[1769012830789,3.11633895,128.94,128.83,3.17164786]
[1769012830993,293.84,128.93,128.83,3.17164786]
[1769012831590,293.8,128.95,128.86,3.17164786]
[1769012831901,3.11633895,128.96,128.86,3.17164786]
[1769012832198,293.8,128.95,128.86,3.17164786]
[1769012832401,3.11633895,128.94,128.86,3.17164786]
[1769012834298,3.11633895,128.93,128.83,3.17164786]
[1769012834701,108.6361,128.97,128.82,108.757]
[1769012834702,3.11633895,128.97,128.88,111.87664786]
[1769012834996,3.11633895,128.97,128.86,108.7207]
[1769012834997,3.11633895,128.97,128.86,3.17164786]
[1769012835197,3.11633895,128.97,128.86,10.16094786]
[1769012835198,10.10063895,128.96,128.86,10.16094786]
[1769012835399,3.11633895,128.95,128.83,3.46004025]
[1769012835600,3.10494996,128.93,128.83,3.46004025]
[1769012836396,3.10494996,128.95,128.85,112.19104025]
[1769012836601,3.10494996,128.98,128.89,3.46004025]
[1769012837006,296.76494996,128.98,128.89,3.46004025]
[1769012837212,3.10494996,128.97,128.86,3.46004025]
[1769012837907,3.10494996,128.97,128.87,6.9888]
[1769012840000,293.58,128.96,128.87,6.9888]
[1769012840401,10.08874996,128.97,128.87,6.9888]
[1769012840701,10.08874996,128.97,128.88,3.46004025]
[1769012841010,293.58,128.97,128.89,3.46004025]
[1769012841412,10.08774996,128.99,128.89,3.46004025]
[1769012841612,293.56,128.98,128.89,3.46004025]
[1769012842012,10.08774996,128.99,128.89,10.44774025]
[1769012842410,300.5233,128.98,128.89,10.44774025]
[1769012842603,300.5233,128.98,128.89,3.46004025]
[1769012842905,3.10494996,128.97,128.89,3.46004025]
[1769012843113,296.64494996,128.96,128.86,3.46004025]
[1769012843902,293.54,128.95,128.86,3.46004025]
[1769012844312,300.5249,128.95,128.86,10.44944025]
[1769012845412,6.9849,128.95,128.87,6.9887]
[1769012845612,293.5,128.94,128.87,10.44874025]
[1769012846909,3.10494996,128.96,128.88,6.9881]
[1769012847109,293.5,128.95,128.88,6.9881]
[1769012847512,10.08784996,128.99,128.9,3.46004025]
[1769012847905,303.56784996,128.99,128.9,3.46004025]
[1769012848406,6.9832,128.98,128.91,6.9867]
[1769012848613,3.10494996,128.99,128.91,6.9867]
[1769012848811,303.56754996,128.99,128.91,6.9867]
[1769012849209,296.58494996,128.99,128.91,10.44674025]
[1769012849415,296.58494996,128.99,128.92,6.9861]
[1769012850024,296.58494996,128.99,128.91,3.46004025]
[1769012850310,3.10494996,128.98,128.88,3.46004025]
[1769012850506,3.10494996,128.97,128.88,3.46004025]
[1769012850912,293.46,128.96,128.88,3.46004025]
[1769012851213,293.44,128.96,128.9,6.9873]
[1769012851521,293.44,128.96,128.9,10.44734025]
[1769012852111,3.10494996,129.0,128.91,6.9867]
[1769012852306,3.10494996,129.0,128.9,3.46004025]
[1769012852505,293.44,128.99,128.9,3.46004025]
[1769012853518,3.10494996,128.98,128.87,112.17444025]
[1769012853718,3.10494996,128.98,128.87,3.46004025]
[1769012853719,3.10494996,128.97,128.87,3.46004025]
[1769012854320,10.08974996,128.95,128.88,6.9883]
[1769012856219,3.10494996,128.95,128.88,6.9883]
[1769012856919,293.42,128.94,128.88,6.9883]
[1769012859315,293.42,128.94,128.87,3.46004025]
[1769012860220,293.42,128.94,128.87,10.44904025]
[1769012860922,3.10494996,128.98,128.88,3.46004025]
[1769012861317,3.10494996,128.98,128.91,10.44664025]
[1769012861718,3.10494996,128.98,128.88,112.16694025]
[1769012861923,3.10494996,128.98,128.89,3.46004025]
[1769012862126,3.10494996,128.97,128.89,3.46004025]
[1769012862623,3.10494996,128.96,128.86,3.46004025]
[1769012863520,296.52494996,128.96,128.88,3.46004025]
[1769012863718,3.10494996,128.99,128.88,3.46004025]
[1769012863917,3.10494996,128.99,128.91,10.44684025]
[1769012864127,3.10494996,128.99,128.91,3.46004025]
[1769012864622,10.08744996,128.99,128.92,6.9861]
[1769012865924,296.52494996,128.99,128.91,3.46004025]
[1769012866122,3.10761155,128.98,128.9,6.9868]
[1769012866323,3.10761155,128.98,128.88,3.47142296]
[1769012866517,3.10761155,128.96,128.88,10.45932296]
[1769012867228,3.10761155,128.96,128.89,6.9878]
[1769012867417,296.50761155,128.96,128.89,6.9878]
[1769012869821,296.50761155,128.96,128.89,10.45922296]
[1769012870328,3.10761155,128.96,128.9,6.9873]
[1769012871227,3.10761155,128.96,128.88,6.988]
[1769012871424,3.10761155,128.96,128.88,3.47142296]
[1769012871617,3.10761155,128.96,128.92,0.05125867]
[1769012874828,296.50761155,128.96,128.92,0.05125867]
[1769012875829,6.9836,128.97,128.92,0.05125867]
[1769012876035,293.4,128.99,128.92,3.52268163]
[1769012876329,296.50761155,128.99,128.92,3.52268163]
[1769012877028,6.983,128.98,128.92,3.52268163]
[1769012877532,303.49011155,128.99,128.92,10.50888163]
[1769012878428,10.09011155,128.99,128.92,10.50888163]
[1769012878730,303.49011155,128.99,128.92,10.50888163]
[1769012878928,3.10486304,129.0,128.92,3.52268163]
[1769012879434,3.10486304,129.0,128.92,3.47142296]
[1769012880437,3.10486304,129.0,128.89,3.18055869]
[1769012881537,10.08736304,128.99,128.92,6.9862]
[1769012881737,13.36999839,129.01,128.92,3.18055869]
[1769012881944,303.54486559,129.02,128.92,3.18055869]
[1769012882450,310.52586559,129.02,128.95,6.9845]
[1769012882646,3.10486304,129.0,128.92,3.18055869]
[1769012882846,3.10486304,129.0,128.9,3.18055869]
[1769012883447,3.10486304,128.97,128.87,3.18055869]
[1769012884351,3.10486304,128.97,128.9,6.9873]
[1769012885344,306.65299584,128.98,128.91,10.16715869]
[1769012885548,299.66999584,128.98,128.91,10.16715869]
[1769012885953,302.77485888,128.98,128.91,10.16715869]
[1769012889660,7.06000255,129.01,128.92,3.18055869]
[1769012889960,3.10486304,128.99,128.93,0.05432742]
[1769012890261,3.10486304,128.99,128.89,3.18055869]
[1769012890457,3.1642252,128.98,128.9,6.9871]
[1769012890759,3.1642252,128.98,128.9,3.18055869]
[1769012890954,3.10486304,128.98,128.9,3.18055869]
[1769012891656,3.10486304,128.98,128.92,6.9862]
[1769012895160,296.46486304,129.01,128.94,6.9851]
[1769012896660,3.10486304,129.01,128.94,6.9851]
[1769012897260,3.11059486,129.0,128.93,3.18055869]
[1769012898865,2.56808807,128.99,128.93,3.18055869]
[1769012899065,2.56808807,128.99,128.94,6.9849]
[1769012901769,5.67868293,128.99,128.93,3.18055869]
[1769012902954,5.67868293,128.99,128.94,6.9851]
[1769012903360,2.56808807,128.99,128.93,3.18055869]
[1769012903561,5.67868293,129.01,128.93,3.18055869]
[1769012904462,2.56808807,129.02,128.95,3.40981913]
[1769012904668,12.73868548,129.04,128.96,3.40981913]
[1769012905475,5.67868293,129.04,128.99,0.05830869]
[1769012906667,3.11059486,129.04,128.99,0.05830869]
[1769012906866,3.11059486,129.04,128.99,7.04060869]
[1769012907069,5.67868293,129.03,128.99,0.05830869]
[1769012907370,5.67868293,129.03,128.96,3.40981913]
[1769012907571,5.72844876,129.03,128.96,3.40981913]
[1769012908557,3.11059486,129.02,128.96,10.39341913]
[1769012908868,3.11059486,129.02,128.96,3.40981913]
[1769012909565,0.05627647,129.0,128.93,3.40981913]
[1769012910967,0.05627647,129.0,128.95,6.9841]
[1769012911475,3.16687133,129.0,128.95,6.9841]
[1769012913285,3.16687133,129.0,128.93,3.40981913]
[1769012914576,3.11059486,128.98,128.91,6.9863]
[1769012914968,3.11059486,128.98,128.91,10.39611913]
[1769012915370,3.11059486,128.98,128.92,10.39521913]
[1769012915570,0.05057672,128.96,128.92,10.39521913]
[1769012917470,0.05057672,128.96,128.88,108.7034]
[1769012917471,9.41287689,129.01,128.93,3.40981913]
[1769012917670,9.41287689,129.01,128.93,3.46901064]
[1769012917671,3.11059486,129.01,128.93,3.46901064]
[1769012918179,3.11059486,129.01,128.93,3.40981913]
[1769012918979,10.09129486,129.01,128.94,10.39421913]
[1769012920869,3.11059486,129.0,128.94,10.39421913]
[1769012928987,6.9807,129.01,128.95,3.39013095]
[1769012929191,3.1088633,129.02,128.96,3.39013095]
[1769012930588,6.9807,129.01,128.96,3.39013095]
[1769012931091,5.67615626,129.02,128.96,3.39013095]
[1769012931884,12.65635626,129.02,128.96,3.39013095]
[1769012933187,2.56729296,129.0,128.94,3.39013095]
[1769012933693,6.9814,129.0,128.94,10.37443095]
[1769012934783,6.9814,129.0,128.95,3.39013095]
[1769012937098,5.67643016,129.03,128.96,3.39013095]
[1769012937495,9.54876686,129.01,128.96,3.39013095]
[1769012938496,3.1088633,129.02,128.96,3.39013095]
[1769012939695,10.0890633,129.02,128.96,3.39013095]
[1769012940192,2.56756686,129.01,128.96,3.39013095]
[1769012940387,2.56756686,128.99,128.93,3.23207872]
[1769012940789,5.67598815,128.99,128.93,3.23207872]
[1769012941697,2.56756686,128.97,128.91,6.9861]
[1769012941891,2.56756686,128.97,128.91,10.21817872]
[1769012942292,3.10842129,128.98,128.92,3.23207872]
[1769012942794,108.583,129.02,128.93,3.23207872]
[1769012942795,2.56756686,129.01,128.93,3.23207872]
[1769012942996,5.67598815,129.01,128.93,3.23207872]
[1769012943695,3.10842129,128.98,128.9,3.23207872]
[1769012944398,3.10842129,129.0,128.92,3.23207872]
[1769012944799,3.10842129,129.0,128.93,10.21697872]
[1769012945200,5.67598815,128.99,128.93,3.23207872]
[1769012945509,5.67598815,128.99,128.91,10.21777872]
[1769012945900,3.10842129,128.98,128.91,10.21777872]
[1769012946896,10.09092129,128.98,128.91,10.21777872]
[1769012947307,10.09092129,128.98,128.91,3.23207872]
[1769012947508,6.9831,128.97,128.91,3.23207872]
[1769012947907,12.65908815,128.97,128.91,3.23207872]
[1769012948095,6.9835,128.96,128.89,3.23207872]
[1769012948508,2.56756686,128.95,128.89,3.23207872]
[1769012949009,5.67598815,128.97,128.89,3.23207872]
[1769012949499,3.10842129,128.96,128.89,3.23207872]
[1769012950104,2.56756686,128.97,128.89,3.23207872]
[1769012950411,2.56756686,128.97,128.9,3.23207872]
[1769012951910,2.56756686,128.97,128.9,10.21857872]
[1769012952112,2.56756686,128.97,128.91,3.23207872]
[1769012953917,2.56756686,128.97,128.91,10.21807872]
[1769012956818,6.9818,128.99,128.93,3.38748758]
[1769012957023,2.56756686,128.99,128.93,3.38748758]
[1769012957723,3.11013931,129.0,128.94,3.38748758]
[1769012960817,5.67770617,128.99,128.92,3.38748758]
[1769012961916,5.67770617,128.99,128.93,3.38748758]
[1769012963021,2.56756686,128.99,128.93,10.37248758]
[1769012963721,3.11013931,128.98,128.91,6.9856]
[1769012964223,3.11013931,128.98,128.9,3.38748758]
[1769012964623,2.56756686,128.97,128.91,3.38748758]
[1769012966023,2.56756686,128.97,128.91,10.37358758]
[1769012967523,9.55046686,128.97,128.91,10.37358758]
[1769012970331,9.55046686,128.97,128.92,6.9856]
[1769012970823,9.55046686,128.97,128.92,10.37308758]
[1769012971126,2.56756686,128.97,128.92,10.37308758]
[1769012973026,5.67770617,129.0,128.94,3.38748758]
[1769012974126,5.67770617,128.98,128.92,3.38748758]
[1769012974825,5.67770617,128.98,128.94,6.9852]
[1769012976121,3.11013931,128.97,128.9,3.38748758]
[1769012976326,2.56756686,128.98,128.9,3.38748758]
[1769012976327,5.67770617,128.96,128.9,3.38748758]
[1769012976630,3.11013931,128.98,128.9,3.38748758]
[1769012976830,5.67770617,128.98,128.9,3.38748758]
[1769012977234,5.67770617,128.98,128.93,6.9857]
[1769012977528,3.11013931,128.97,128.9,3.38748758]
[1769012979128,2.56756686,128.96,128.9,3.38748758]
[1769012979328,2.56756686,128.96,128.9,10.37428758]
[1769012981839,2.56756686,128.96,128.91,3.38748758]
[1769012983234,3.11013931,128.95,128.88,10.37558758]
[1769012983535,5.67770617,128.94,128.88,10.37558758]
[1769012985437,5.67770617,128.94,128.88,3.38748758]
[1769012985738,12.66300617,128.94,128.88,3.38748758]
[1769012986633,6.9858,128.93,128.88,3.38748758]
[1769012986835,5.67770617,128.94,128.88,3.38748758]
[1769012991832,409.11204019,128.98,128.85,303.46024574]
[1769012991833,5.67816952,128.92,128.85,306.59762323]
[1769012992037,5.67816952,128.92,128.86,3.13737749]
[1769012992937,5.67816952,128.92,128.86,10.12677749]
[1769012996141,5.67816952,128.94,128.88,3.13737749]
[1769012996639,3.11060266,128.93,128.86,3.13737749]
[1769012996840,5.68133083,128.93,128.86,3.13737749]
[1769012997237,3.11060266,128.93,128.87,3.13737749]
[1769012997739,5.68133083,128.92,128.85,3.13737749]
[1769012998537,3.11155957,128.91,128.85,10.12687749]
[1769012999142,3.11155957,128.91,128.86,3.46026355]
[1769013000834,3.11155957,128.87,128.81,3.46026355]
[1769013001042,3.11155957,128.87,128.74,122.8173]
[1769013001043,3.11155957,128.85,128.77,3.46026355]
[1769013001232,3.11155957,128.85,128.75,108.8135]
[1769013001233,3.11155957,128.83,128.74,3.46026355]
[1769013001440,3.11155957,128.83,128.76,3.46026355]
[1769013001747,3.11155957,128.85,128.76,3.46026355]
[1769013002648,3.11155957,128.83,128.76,10.45496355]
[1769013003149,3.11155957,128.83,128.76,3.46026355]
[1769013003343,2.57072817,128.84,128.76,3.46026355]
[1769013004239,2.57072817,128.84,128.79,0.05075708]
[1769013004433,3.11155957,128.83,128.79,0.05075708]
[1769013004643,3.11155957,128.85,128.79,0.05075708]
[1769013004843,5.68228774,128.85,128.79,0.05075708]
[1769013005240,3.11155957,128.84,128.77,10.45446355]
[1769013005443,402.1731,128.88,128.75,3.46026355]
[1769013005444,3.11155957,128.82,128.75,3.46026355]
[1769013006038,3.11155957,128.82,128.77,0.05923571]
[1769013007550,2.57072817,128.83,128.77,0.05923571]
[1769013007846,3.11155957,128.84,128.77,3.51949926]
[1769013008349,3.11155957,128.84,128.77,10.51379926]
[1769013008544,3.11155957,128.86,128.78,3.46026355]
[1769013008746,5.68228774,128.89,128.83,3.46026355]
[1769013008952,5.68228774,128.91,128.83,3.46026355]
[1769013009554,2.57072817,128.89,128.83,3.46026355]
[1769013009764,3.11155957,128.9,128.83,3.46026355]
[1769013010450,3.11155957,128.9,128.84,3.46026355]
[1769013010653,2.57072817,128.93,128.85,3.46026355]
[1769013011544,5.68228774,128.93,128.85,3.46026355]
[1769013011949,2.57072817,128.95,128.87,3.46026355]
[1769013012252,3.11155957,128.96,128.89,3.46026355]
[1769013013246,12.66608774,128.97,128.89,3.46026355]
[1769013013652,3.11155957,128.95,128.87,3.46026355]
[1769013013953,5.68228774,128.97,128.87,3.46026355]
[1769013014757,3.11155957,128.97,128.89,3.46026355]
[1769013015053,10.09525957,128.97,128.89,3.46026355]
[1769013015253,3.11155957,128.97,128.89,3.46026355]
[1769013015552,12.65998659,128.99,128.91,6.9867]
[1769013015949,12.65998659,128.99,128.92,3.42563316]
[1769013016144,12.65998659,128.99,128.94,0.04953789]
[1769013016748,9.55362817,128.99,128.94,0.04953789]
[1769013016953,3.05682053,128.96,128.87,3.42563316]
[1769013017455,3.05682053,128.96,128.88,10.41393316]
[1769013018352,0.05924306,128.93,128.88,10.41393316]